bitfinex/quotes_SOLUSD_20250308
["timestamp","ask_amount","ask_price","bid_price","bid_amount"]
[1741394455462,7.1496,140.46,140.41,34.22110783]
[1741394456359,7.1496,140.46,140.41,27.09930783]
[1741394456749,7.1496,140.46,140.41,34.22120783]
[1741394458168,0.03,140.46,140.42,20.77930783]
[1741394460363,0.03,140.46,140.41,27.09930783]
[1741394460556,20.77930783,140.45,140.41,6.32]
[1741394460740,20.77930783,140.45,140.39,6.32]
[1741394461163,0.03,140.46,140.42,20.77930783]
[1741394461550,0.03,140.46,140.42,27.90060783]
[1741394461760,6.655,140.46,140.38,0.033]
[1741394462067,20.77930783,140.4,140.38,0.033]
[1741394462951,20.77930783,140.41,140.38,0.033]
[1741394463563,27.90160783,140.41,140.38,0.033]
[1741394464152,20.77930783,140.41,140.38,0.033]
[1741394465369,17.8013,140.44,140.38,20.81230783]
[1741394465370,20.77930783,140.44,140.38,20.81230783]
[1741394465871,20.77930783,140.43,140.38,0.033]
[1741394466452,20.77930783,140.43,140.38,7.1564]
[1741394466952,20.77930783,140.44,140.38,27.93570783]
[1741394468870,20.77930783,140.43,140.38,0.033]
[1741394469054,20.77930783,140.43,140.38,7.1563]
[1741394469455,20.77930783,140.44,140.38,27.93560783]
[1741394469667,20.77930783,140.43,140.38,7.1563]
[1741394470674,20.77930783,140.43,140.38,0.033]
[1741394471150,20.77930783,140.43,140.38,7.1563]
[1741394472571,20.77930783,140.42,140.38,0.033]
[1741394472873,20.77930783,140.41,140.38,0.033]
[1741394474372,27.90130783,140.41,140.38,0.033]
[1741394477471,20.77930783,140.4,140.38,0.033]
[1741394477685,20.77930783,140.39,140.38,0.033]
[1741394478380,20.77930783,140.4,140.38,0.033]
[1741394478572,111.75920783,140.41,140.38,0.033]
[1741394479473,7.123,140.39,140.38,0.033]
[1741394479674,27.90230783,140.39,140.38,0.033]
[1741394481473,34.54740783,140.39,140.38,0.033]
[1741394481679,84.54740783,140.39,140.38,0.033]
[1741394483970,20.77930783,140.39,140.38,0.033]
[1741394484152,27.90230783,140.39,140.38,0.033]
[1741394493078,95.70980783,140.39,140.35,0.033]
[1741394493279,20.77930783,140.36,140.35,0.033]
[1741394493492,41.55861566,140.36,140.35,0.033]
[1741394493984,20.77930783,140.36,140.35,0.033]
[1741394495000,27.90380783,140.36,140.35,0.033]
[1741394495166,77.90380783,140.36,140.35,0.033]
[1741394497270,27.90380783,140.36,140.35,0.033]
[1741394497577,0.03,140.39,140.35,22.37400783]
[1741394497770,0.03,140.39,140.37,20.77930783]
[1741394498387,0.03,140.39,140.37,27.11930783]
[1741394498885,20.80930783,140.39,140.35,1.5947]
[1741394499086,20.77930783,140.38,140.35,1.5947]
[1741394499268,0.03,140.39,140.35,29.49890783]
[1741394499672,0.03,140.39,140.37,20.77930783]
[1741394500692,0.03,140.39,140.36,20.77930783]
[1741394500878,0.03,140.39,140.35,29.49890783]
[1741394501286,0.03,140.39,140.37,7.124]
[1741394504880,0.03,140.39,140.36,27.90380783]
[1741394505211,0.03,140.39,140.35,1.5947]
[1741394505379,0.03,140.39,140.35,8.7197]
[1741394505896,0.03,140.39,140.35,29.49900783]
[1741394506485,0.03,140.39,140.36,20.77930783]
[1741394507207,0.03,140.39,140.37,0.033]
[1741394508704,0.03,140.39,140.37,20.81230783]
[1741394509782,0.03,140.39,140.37,0.033]
[1741394509988,0.03,140.39,140.38,20.77930783]
[1741394511187,0.03,140.39,140.38,27.90280783]
[1741394512609,0.03,140.39,140.37,20.81230783]
[1741394512910,0.03,140.39,140.37,0.033]
[1741394514491,20.80930783,140.39,140.37,0.033]
[1741394514696,27.90280783,140.38,140.37,0.033]
[1741394518708,128.01160783,140.38,140.35,0.033]
[1741394519021,20.77930783,140.36,140.35,0.033]
[1741394519520,27.90380783,140.36,140.35,0.033]
[1741394520717,20.77930783,140.37,140.35,0.033]
[1741394520899,110.20290783,140.38,140.35,0.033]
[1741394522500,0.03,140.39,140.35,0.033]
[1741394522700,0.03,140.39,140.35,20.81230783]
[1741394522899,20.77930783,140.38,140.35,0.033]
[1741394523810,7.1532,140.39,140.35,0.033]
[1741394523811,27.93250783,140.39,140.35,0.033]
[1741394533333,20.77930783,140.38,140.35,0.033]
[1741394534229,0.03,140.39,140.35,20.81230783]
[1741394535133,0.03,140.39,140.35,0.033]
[1741394536208,0.03,140.39,140.37,20.77930783]
[1741394538238,0.03,140.39,140.37,27.90290783]
[1741394539115,0.03,140.39,140.38,20.77930783]
[1741394539520,0.03,140.39,140.38,7.1235]
[1741394540535,0.03,140.39,140.37,27.90310783]
[1741394540737,0.03,140.39,140.35,1.6336]
[1741394540943,0.03,140.39,140.35,29.53780783]
[1741394541130,0.03,140.39,140.37,20.77930783]
[1741394541440,0.03,140.39,140.35,29.53780783]
[1741394542214,0.03,140.39,140.37,20.77930783]
[1741394543820,0.03,140.39,140.38,7.1235]
[1741394544939,0.03,140.39,140.37,20.77930783]
[1741394545158,0.03,140.39,140.37,27.90300783]
[1741394545362,0.03,140.39,140.35,14.97255394]
[1741394545658,0.03,140.39,140.35,1.6336]
[1741394546325,7.153,140.39,140.35,1.6336]
[1741394547049,0.03,140.39,140.35,22.09735394]
[1741394547252,0.03,140.39,140.35,29.60615856]
[1741394550229,20.87775856,140.39,140.35,0.033]
[1741394550429,20.84775856,140.38,140.35,0.033]
[1741394551034,20.87775856,140.39,140.35,0.033]
[1741394551252,20.87775856,140.39,140.35,7.1579]
[1741394552255,20.87775856,140.39,140.35,0.033]
[1741394552455,28.00085856,140.39,140.35,0.033]
[1741394552654,20.84775856,140.38,140.35,0.033]
[1741394554071,27.97125856,140.38,140.35,0.033]
[1741394554364,7.1235,140.38,140.35,0.033]
[1741394554577,28.00095856,140.39,140.35,0.033]
[1741394555374,20.84775856,140.38,140.35,0.033]
[1741394556050,27.97135856,140.38,140.35,0.033]
[1741394556252,20.84775856,140.37,140.35,0.033]
[1741394556652,103.14775856,140.38,140.35,0.033]
[1741394556861,82.3,140.38,140.35,0.033]
[1741394557372,0.03,140.39,140.36,20.84775856]
[1741394557562,0.03,140.39,140.37,20.84775856]
[1741394558278,0.03,140.39,140.37,27.97135856]
[1741394558857,0.03,140.39,140.37,7.1236]
[1741394559781,0.03,140.39,140.37,27.97135856]
[1741394563570,0.03,140.39,140.35,6.353]
[1741394563769,20.87775856,140.39,140.35,6.353]
[1741394564281,28.00075856,140.39,140.35,6.353]
[1741394564964,0.03,140.39,140.35,13.4779]
[1741394565159,0.03,140.39,140.35,7.1579]
[1741394566881,20.84775856,140.38,140.35,0.033]
[1741394567268,20.87775856,140.39,140.35,0.033]
[1741394568783,0.03,140.39,140.38,20.84775856]
[1741394569170,0.03,140.39,140.37,20.84775856]
[1741394569369,0.03,140.39,140.37,13.33736553]
[1741394569987,0.03,140.39,140.36,13.33736553]
[1741394570488,0.03,140.39,140.35,13.37036553]
[1741394570878,0.03,140.39,140.36,7.1245]
[1741394571077,0.03,140.39,140.36,20.46186553]
[1741394573474,0.03,140.39,140.37,13.33736553]
[1741394574301,0.03,140.39,140.38,13.33736553]
[1741394574772,0.03,140.39,140.38,20.46086553]
[1741394576599,0.03,140.39,140.35,0.033]
[1741394576776,0.03,140.39,140.36,13.33736553]
[1741394577096,0.03,140.39,140.35,0.033]
[1741394577282,0.03,140.39,140.35,13.37036553]
[1741394577691,0.03,140.39,140.36,13.33736553]
[1741394578189,0.03,140.39,140.37,13.33736553]
[1741394578901,0.03,140.39,140.37,20.46126553]
[1741394580670,0.03,140.39,140.37,13.33736553]
[1741394580902,0.03,140.39,140.36,20.46166553]
[1741394587099,0.03,140.39,140.37,13.33736553]
[1741394587291,0.03,140.39,140.38,13.33736553]
[1741394589202,0.03,140.39,140.37,13.33736553]
[1741394590384,0.03,140.39,140.38,7.1235]
[1741394591904,0.03,140.39,140.38,20.46086553]
[1741394594607,7.699,140.44,140.38,20.46086553]
[1741394594782,7.699,140.44,140.39,13.33736553]
[1741394596405,7.699,140.44,140.4,7.1225]
[1741394598003,1.5653,140.44,140.4,7.1225]
[1741394598212,95.66736553,140.46,140.4,20.45986553]
[1741394599309,0.03,140.46,140.42,13.33736553]
[1741394599806,0.03,140.46,140.39,13.33736553]
[1741394599807,13.33736553,140.45,140.39,13.33736553]
[1741394600017,13.33736553,140.44,140.38,20.46086553]
[1741394600386,20.45776553,140.44,140.38,20.46086553]
[1741394600695,20.45736553,140.45,140.38,20.46086553]
[1741394600898,20.48696553,140.46,140.39,13.33736553]
[1741394601222,20.48696553,140.46,140.4,13.33736553]
[1741394601608,0.03,140.46,140.41,13.33736553]
[1741394601811,0.03,140.46,140.38,7.1235]
[1741394601812,0.03,140.46,140.42,13.33736553]
[1741394602290,0.03,140.44,140.42,13.33736553]
[1741394603107,0.03,140.44,140.42,20.45856553]
[1741394603303,0.03,140.44,140.43,13.33736553]
[1741394605486,0.03,140.44,140.42,19.65736553]
[1741394605905,0.03,140.44,140.4,0.033]
[1741394606086,0.03,140.44,140.4,19.69036553]
[1741394607018,0.03,140.44,140.4,13.37036553]
[1741394607220,0.03,140.44,140.41,13.33736553]
[1741394608322,0.03,140.44,140.42,13.33736553]
[1741394608818,0.03,140.44,140.41,20.45916553]
[1741394609393,0.03,140.44,140.42,13.33736553]
[1741394610529,0.03,140.44,140.41,13.33736553]
[1741394611006,0.03,140.44,140.4,13.37036553]
[1741394612499,0.03,140.44,140.4,20.49276553]
[1741394615312,0.03,140.44,140.4,13.37036553]
[1741394615516,13.36736553,140.44,140.4,0.033]
[1741394616432,0.03,140.44,140.4,0.033]
[1741394617114,13.33736553,140.43,140.4,0.033]
[1741394617742,13.36736553,140.44,140.4,0.033]
[1741394617910,7.1209,140.43,140.4,0.033]
[1741394618111,0.03,140.44,140.4,0.033]
[1741394618411,0.03,140.44,140.41,13.33736553]
[1741394619629,0.03,140.44,140.43,13.33736553]
[1741394619831,0.03,140.44,140.43,20.45826553]
[1741394621737,0.0001,140.44,140.43,20.45826553]
[1741394621957,0.0001,140.46,140.44,6.5453]
[1741394622235,0.0001,140.46,140.45,19.65736553]
[1741394623220,0.03,140.52,140.45,270.81555979]
[1741394623418,0.03,140.52,140.51,13.33736553]
[1741394623640,0.03,140.52,140.51,19.65736553]
[1741394625430,0.03,140.52,140.51,26.77426553]
[1741394626230,0.03,140.52,140.51,35.41523339]
[1741394626622,0.0001,140.52,140.51,35.41523339]
[1741394627039,0.0001,140.53,140.51,170.01523339]
[1741394627241,0.03,140.59,140.52,13.33736553]
[1741394627447,0.03,140.59,140.58,13.33736553]
[1741394627617,0.03,140.59,140.58,19.65736553]
[1741394629247,0.03,140.59,140.58,27.0934915]
[1741394630430,0.03,140.59,140.58,34.2067915]
[1741394632460,12.9442,140.64,140.6,20.7734915]
[1741394633542,1.5345,140.65,140.6,20.7734915]
[1741394633741,8.6444,140.65,140.6,20.7734915]
[1741394633948,0.03,140.67,140.62,20.7734915]
[1741394634249,0.03,140.67,140.64,20.7734915]
[1741394635350,0.03,140.67,140.65,31.34851961]
[1741394635531,0.03,140.67,140.66,20.7734915]
[1741394635731,0.03,140.67,140.65,20.7734915]
[1741394635934,0.03,140.67,140.66,20.7734915]
[1741394637440,0.03,140.67,140.66,27.8827915]
[1741394637856,0.03,140.67,140.66,162.4827915]
[1741394638743,0.03,140.67,140.66,20.7734915]
[1741394639347,0.03,140.67,140.66,27.8827915]
[1741394639948,0.03,140.67,140.66,20.7734915]
[1741394640332,0.03,140.67,140.65,20.7734915]
[1741394641433,0.03,140.67,140.66,20.7734915]
[1741394642053,0.03,140.67,140.65,20.7734915]
[1741394643555,0.03,140.67,140.64,20.7734915]
[1741394644258,0.03,140.67,140.65,20.7734915]
[1741394645341,0.03,140.67,140.64,20.7734915]
[1741394645739,0.03,140.67,140.62,20.7734915]
[1741394647358,0.03,140.67,140.63,20.7734915]
[1741394647559,0.03,140.67,140.65,20.7734915]
[1741394648069,0.03,140.67,140.66,20.7734915]
[1741394648651,0.03,140.67,140.65,20.7734915]
[1741394648847,0.03,140.67,140.64,20.7734915]
[1741394649051,0.03,140.67,140.63,20.7734915]
[1741394649842,0.03,140.67,140.62,20.8064915]
[1741394650643,0.03,140.67,140.63,20.7734915]
[1741394653869,0.03,140.67,140.63,27.8840915]
[1741394655271,0.03,140.67,140.63,13.28994366]
[1741394657455,0.03,140.67,140.64,20.40024366]
[1741394659773,0.03,140.67,140.66,13.28994366]
[1741394661275,0.03,140.67,140.66,20.39924366]
[1741394661471,0.0001,140.67,140.66,20.39924366]
[1741394675389,0.0001,140.67,140.66,22.01984366]
[1741394675590,0.0001,140.67,140.66,75.1796183]
[1741394676162,2.0418888,140.8,140.67,6.3238]
[1741394676369,2.0418888,140.8,140.78,13.28994366]
[1741394677188,2.0418888,140.8,140.77,7.1037]
[1741394677390,2.0418888,140.8,140.77,27.82760456]
[1741394677568,2.0418888,140.8,140.75,27.82860456]
[1741394677762,2.0418888,140.8,140.74,6.34]
[1741394677763,20.72390456,140.79,140.74,6.34]
[1741394678193,22.76579336,140.8,140.74,34.16910456]
[1741394678390,2.0418888,140.8,140.75,20.72390456]
[1741394678688,22.76579336,140.8,140.74,34.16910456]
[1741394678989,22.76579336,140.8,140.74,27.06390456]
[1741394680692,20.72390456,140.79,140.74,6.34]
[1741394682797,27.82670456,140.79,140.74,6.34]
[1741394683498,20.72390456,140.79,140.74,6.34]
[1741394683684,29.86809336,140.8,140.74,27.06390456]
[1741394684191,20.72390456,140.79,140.74,6.34]
[1741394685585,27.82700456,140.79,140.74,6.34]
[1741394685893,7.1031,140.79,140.74,27.06390456]
[1741394686196,27.82700456,140.79,140.74,27.06390456]
[1741394687801,20.72390456,140.76,140.7,20.72390456]
[1741394688177,20.72390456,140.76,140.71,20.72390456]
[1741394688675,88.8904,140.77,140.72,20.72390456]
[1741394689286,88.8904,140.77,140.68,31.1789]
[1741394689287,88.8904,140.77,140.73,20.72390456]
[1741394689682,27.82860456,140.75,140.69,20.72390456]
[1741394691101,27.82860456,140.75,140.69,27.83160456]
[1741394691286,7.1047,140.75,140.7,20.72390456]
[1741394692282,20.72390456,140.76,140.7,20.72390456]
[1741394692481,27.82820456,140.76,140.7,20.72390456]
[1741394692684,27.82820456,140.76,140.69,27.83160456]
[1741394692885,20.72390456,140.75,140.69,27.83160456]
[1741394693105,27.82820456,140.76,140.69,27.83160456]
[1741394693820,27.82900456,140.75,140.69,27.83160456]
[1741394694302,22.38700456,140.73,140.67,20.72390456]
[1741394694506,20.72390456,140.72,140.66,20.75690456]
[1741394695006,20.72390456,140.72,140.66,27.86600456]
[1741394695207,22.38700456,140.73,140.67,20.72390456]
[1741394696114,22.38700456,140.73,140.68,7.1083]
[1741394696313,1.6631,140.73,140.69,20.72390456]
[1741394697117,1.6631,140.73,140.68,27.83220456]
[1741394697407,29.49280456,140.73,140.67,27.83250456]
[1741394698012,29.49280456,140.73,140.67,20.72390456]
[1741394698605,29.49280456,140.73,140.67,27.83260456]
[1741394698783,29.49280456,140.73,140.66,7.1421]
[1741394698989,20.72390456,140.72,140.66,27.86600456]
[1741394699300,22.05031911,140.73,140.67,13.28141911]
[1741394700383,22.05031911,140.73,140.67,20.39021911]
[1741394700789,13.28141911,140.72,140.66,13.31441911]
[1741394700991,13.28141911,140.7,140.66,0.033]
[1741394701204,13.28141911,140.69,140.66,0.033]
[1741394701896,20.38951911,140.69,140.66,0.033]
[1741394702105,97.08851911,140.68,140.66,0.033]
[1741394702413,102.02741911,140.67,140.66,0.033]
[1741394703809,152.02741911,140.67,140.66,0.033]
[1741394704009,159.13621911,140.67,140.57,26.71511911]
[1741394704311,14.78851911,140.63,140.56,20.39561911]
[1741394704705,14.78851911,140.63,140.57,13.28141911]
[1741394705402,22.28947967,140.63,140.57,27.89607967]
[1741394706199,22.28947967,140.63,140.59,20.78237967]
[1741394706200,1.5071,140.63,140.59,20.78237967]
[1741394706498,82.3,140.65,140.6,20.78237967]
[1741394707520,82.3,140.65,140.61,7.1118]
[1741394707719,1.5263,140.66,140.61,27.89417967]
[1741394708199,22.30867967,140.66,140.61,7.1118]
[1741394708399,20.78237967,140.64,140.59,34.21507967]
[1741394708619,20.78237967,140.63,140.59,6.32]
[1741394709014,20.78237967,140.64,140.59,13.4327]
[1741394709198,20.78237967,140.64,140.59,6.32]
[1741394709400,20.78237967,140.64,140.6,7.1123]
[1741394709922,104.60867967,140.66,140.6,27.89467967]
[1741394710096,20.78237967,140.64,140.6,7.1123]
[1741394710300,20.78237967,140.64,140.59,6.32]
[1741394711601,103.08237967,140.63,140.53,1.6527]
[1741394711796,98.67555934,140.63,140.54,20.78237967]
[1741394711996,98.67555934,140.63,140.53,20.81537967]
[1741394711997,20.78237967,140.58,140.53,20.81537967]
[1741394712202,20.78237967,140.58,140.53,27.93117967]
[1741394712920,20.78237967,140.59,140.53,27.93117967]
[1741394713120,82.3,140.61,140.57,20.78237967]
[1741394713917,82.3,140.61,140.56,27.89667967]
[1741394714230,82.3,140.61,140.57,20.78237967]
[1741394714724,27.10237967,140.63,140.58,20.78237967]
[1741394714725,6.32,140.63,140.58,20.78237967]
[1741394714903,1.5263,140.64,140.59,20.78237967]
[1741394715099,1.5263,140.64,140.57,6.32]
[1741394715308,22.30867967,140.64,140.58,20.78237967]
[1741394715723,1.5263,140.64,140.6,20.78237967]
[1741394716027,109.08837967,140.66,140.61,27.89417967]
[1741394716729,109.08837967,140.66,140.61,7.1118]
[1741394720032,88.306,140.66,140.61,27.89417967]
[1741394720233,82.3,140.66,140.61,27.89417967]
[1741394721839,103.08237967,140.66,140.61,27.89417967]
[1741394723823,82.3,140.66,140.63,20.78237967]
[1741394724015,0.03,140.67,140.64,20.78237967]
[1741394724216,0.03,140.67,140.62,20.78237967]
[1741394724520,20.81237967,140.67,140.61,20.81537967]
[1741394725335,103.08237967,140.66,140.61,0.033]
[1741394725519,20.78237967,140.63,140.61,0.033]
[1741394725921,27.89367967,140.62,140.61,0.033]
[1741394726747,29.51257967,140.62,140.61,0.033]
[1741394727751,1.6189,140.62,140.61,0.033]
[1741394728038,103.08237967,140.64,140.61,0.033]
[1741394728248,110.19267967,140.64,140.61,0.033]
[1741394728732,20.78237967,140.63,140.61,0.033]
[1741394729148,89.4103,140.64,140.61,0.033]
[1741394729438,110.19267967,140.64,140.61,0.033]
[1741394731919,20.78237967,140.63,140.61,0.033]
[1741394732121,103.08237967,140.62,140.61,0.033]
[1741394732338,20.78237967,140.62,140.61,0.033]
[1741394732534,27.89367967,140.62,140.61,0.033]
[1741394733044,29.51257967,140.62,140.61,0.033]
[1741394733543,36.15267967,140.62,140.61,0.033]
[1741394734125,50.0,140.6,140.53,0.033]
[1741394734446,20.78237967,140.56,140.53,0.033]
[1741394735145,20.78237967,140.54,140.53,0.033]
[1741394736131,56.3,140.55,140.53,0.033]
[1741394736132,6.3,140.55,140.53,0.033]
[1741394736443,6.6401,140.57,140.53,20.81537967]
[1741394736825,20.78237967,140.58,140.53,20.81537967]
[1741394737027,27.89577967,140.58,140.53,20.81537967]
[1741394737644,29.51417967,140.59,140.53,20.81537967]
[1741394738138,20.78237967,140.58,140.53,0.033]
[1741394738640,27.89617967,140.57,140.53,0.033]
[1741394738822,20.78237967,140.55,140.53,0.033]
[1741394739945,20.78237967,140.54,140.53,0.033]
[1741394740139,77.35797967,140.54,140.53,0.033]
[1741394740524,78.94507967,140.54,140.53,0.033]
[1741394740843,86.06047967,140.54,140.53,0.033]
[1741394742243,36.06047967,140.54,140.53,0.033]
[1741394743129,28.94507967,140.54,140.53,0.033]
[1741394744045,36.06047967,140.54,140.53,0.033]
[1741394745148,22.36947967,140.54,140.53,0.033]
[1741394745749,20.78237967,140.56,140.53,0.033]
[1741394746450,174.90237967,140.58,140.53,0.033]
[1741394746653,154.12,140.58,140.53,20.81537967]
[1741394746950,154.12,140.58,140.54,20.78237967]
[1741394747146,154.12,140.58,140.53,20.81537967]
[1741394747647,154.12,140.58,140.54,20.78237967]
[1741394747855,50.0,140.63,140.57,20.78237967]
[1741394747856,20.78237967,140.63,140.57,20.78237967]
[1741394748155,27.89327967,140.63,140.58,7.1133]
[1741394748451,27.89327967,140.63,140.57,27.89607967]
[1741394748838,27.89327967,140.63,140.57,7.1137]
[1741394748839,20.78237967,140.62,140.57,7.1137]
[1741394749752,20.78237967,140.62,140.56,20.78237967]
[1741394749941,27.89377967,140.62,140.56,27.89657967]
[1741394750529,20.78237967,140.61,140.55,27.89707967]
[1741394751130,20.78237967,140.6,140.55,27.89707967]
[1741394752149,27.89447967,140.61,140.55,27.89707967]
[1741394752744,27.89377967,140.62,140.56,20.78237967]
[1741394752951,20.78237967,140.62,140.56,20.78237967]
[1741394753650,27.89387967,140.62,140.56,27.89637967]
[1741394755762,20.78237967,140.61,140.56,27.89637967]
[1741394755966,20.78237967,140.6,140.55,27.89707967]
[1741394756139,20.78237967,140.6,140.55,7.1147]
[1741394756455,27.89437967,140.61,140.55,27.89707967]
[1741394757161,20.78237967,140.61,140.55,27.89707967]
[1741394757857,20.78237967,140.61,140.56,20.78237967]
[1741394758764,20.78237967,140.61,140.56,20.81537967]
[1741394758958,20.78237967,140.61,140.56,0.033]
[1741394759666,20.78237967,140.61,140.56,20.81537967]
[1741394760561,20.78237967,140.61,140.56,27.92927967]
[1741394761367,20.81237967,140.62,140.56,27.92927967]
[1741394761955,27.92377967,140.62,140.56,27.92927967]
[1741394762156,20.78237967,140.61,140.56,27.92927967]
[1741394762357,20.78237967,140.61,140.56,7.1469]
[1741394765266,20.81237967,140.62,140.56,27.92927967]
[1741394766462,20.78237967,140.61,140.56,7.1469]
[1741394766674,20.78237967,140.58,140.56,0.033]
[1741394766867,20.78237967,140.57,140.56,0.033]
[1741394767048,27.89617967,140.57,140.56,0.033]
[1741394771673,20.78237967,140.57,140.56,0.033]
[1741394771977,103.08237967,140.58,140.56,0.033]
[1741394772760,110.19577967,140.58,140.56,0.033]
[1741394773071,27.89577967,140.58,140.56,0.033]
[1741394773276,20.78237967,140.6,140.56,0.033]
[1741394773473,82.33,140.62,140.56,20.81537967]
[1741394773674,110.22367967,140.62,140.56,22.45717967]
[1741394774074,20.78237967,140.61,140.56,1.6748]
[1741394775164,110.22367967,140.62,140.56,22.45717967]
[1741394775364,110.22367967,140.62,140.56,29.57117967]
[1741394776180,82.33,140.62,140.56,29.57117967]
[1741394776365,103.11237967,140.62,140.56,29.57117967]
[1741394777173,110.22387967,140.62,140.56,29.57117967]
[1741394777980,103.11237967,140.62,140.56,29.57117967]
[1741394778564,20.78237967,140.61,140.56,29.57117967]
[1741394778764,103.11237967,140.62,140.56,29.57117967]
[1741394779884,110.22377967,140.62,140.56,29.57117967]
[1741394780060,20.78237967,140.61,140.56,8.7888]
[1741394780264,20.78237967,140.61,140.56,1.6748]
[1741394780882,20.78237967,140.61,140.56,22.45717967]
[1741394781182,20.78237967,140.61,140.56,29.57147967]
[1741394781865,110.22377967,140.62,140.56,29.57147967]
[1741394782186,103.11237967,140.62,140.57,20.78237967]
[1741394782684,103.11237967,140.62,140.56,15.3369]
[1741394782865,110.22387967,140.62,140.57,20.78237967]
[1741394785087,110.22387967,140.62,140.57,27.89607967]
[1741394785676,110.22387967,140.62,140.57,7.1137]
[1741394786385,110.22387967,140.62,140.56,36.11927967]
[1741394788394,103.11237967,140.62,140.56,36.11927967]
[1741394788771,103.11237967,140.62,140.57,20.78237967]
[1741394789285,95.63109246,140.62,140.57,13.30109246]
[1741394790598,89.4413,140.62,140.57,13.30109246]
[1741394790908,102.74239246,140.62,140.57,13.30109246]
[1741394792498,102.74239246,140.62,140.56,28.63799246]
[1741394793004,13.30109246,140.58,140.56,0.033]
[1741394793187,13.30109246,140.57,140.56,0.033]
[1741394794278,13.30109246,140.58,140.56,0.033]
[1741394794486,7.1129,140.59,140.56,0.033]
[1741394794687,7.1125,140.6,140.56,0.033]
[1741394794898,13.30109246,140.58,140.56,0.033]
[1741394795095,13.30109246,140.59,140.56,0.033]
[1741394795410,20.79018282,140.6,140.56,0.033]
[1741394795608,82.3,140.61,140.56,20.82318282]
[1741394796101,103.09018282,140.61,140.56,0.033]
[1741394797003,0.03,140.62,140.58,22.43968282]
[1741394797296,0.03,140.62,140.59,20.79018282]
[1741394797500,0.03,140.62,140.58,28.73968282]
[1741394797682,20.82018282,140.62,140.58,7.9495]
[1741394798605,0.03,140.62,140.58,15.0627]
[1741394799103,0.03,140.62,140.59,20.79018282]
[1741394799292,0.03,140.62,140.6,20.79018282]
[1741394799487,0.03,140.62,140.59,20.79018282]
[1741394799800,0.03,140.62,140.58,53.63628282]
[1741394800319,0.03,140.62,140.59,20.79018282]
[1741394800817,0.03,140.62,140.6,7.1123]
[1741394804111,0.03,140.62,140.6,27.90248282]
[1741394804602,0.03,140.62,140.61,20.79018282]
[1741394804997,0.03,140.62,140.6,27.90248282]
[1741394806740,20.82018282,140.62,140.58,1.6495]
[1741394807021,20.79018282,140.6,140.56,0.033]
[1741394807200,20.82018282,140.62,140.56,27.93738282]
[1741394807401,0.03,140.62,140.57,20.79018282]
[1741394808021,0.03,140.62,140.6,20.79018282]
[1741394808734,0.03,140.62,140.59,6.3]
[1741394810252,0.03,140.62,140.59,27.09018282]
[1741394811620,0.03,140.62,140.6,20.79018282]
[1741394815140,0.03,140.62,140.61,28.97388282]
[1741394815520,0.03,140.62,140.6,20.79018282]
[1741394815725,0.03,140.62,140.56,0.033]
[1741394815726,20.79018282,140.61,140.56,0.033]
[1741394815936,20.79018282,140.6,140.56,0.033]
[1741394817023,20.79018282,140.57,140.56,0.033]
[1741394817441,27.90398282,140.57,140.56,0.033]
[1741394817946,27.90358282,140.58,140.56,0.033]
[1741394818141,20.79018282,140.57,140.56,0.033]
[1741394818827,103.09018282,140.57,140.56,0.033]
[1741394819641,110.20398282,140.57,140.56,0.033]
[1741394819855,50.0,140.54,140.46,1.6537]
[1741394820058,50.0,140.54,140.46,0.033]
[1741394820059,20.79018282,140.5,140.46,0.033]
[1741394820258,20.79018282,140.49,140.46,0.033]
[1741394820547,82.3,140.5,140.46,20.82318282]
[1741394820748,103.09018282,140.5,140.46,0.033]
[1741394821759,20.79018282,140.48,140.46,0.033]
[1741394824057,20.79018282,140.49,140.46,0.033]
[1741394824927,20.79018282,140.48,140.46,0.033]